bitfinex/quotes_SOLUSD_20230116
["timestamp","ask_amount","ask_price","bid_price","bid_amount"]
[1673901361825,73.58522586,23.706,23.672,31.7]
[1673901362143,73.58522586,23.706,23.66,134.7539]
[1673901362144,181.43712432,23.705,23.668,31.71]
[1673901362351,20.0,23.703,23.668,20.0]
[1673901362543,36.51758,23.702,23.668,20.0]
[1673901362761,37.0,23.701,23.668,20.0]
[1673901362965,37.0,23.701,23.661,31.72]
[1673901362966,31.67,23.7,23.661,31.72]
[1673901363180,152.90838,23.699,23.661,31.72]
[1673901363411,126.4,23.697,23.66,114.6239]
[1673901363611,171.95988,23.696,23.66,114.6239]
[1673901363829,76.59522586,23.696,23.66,122.36249959]
[1673901364054,76.59522586,23.696,23.661,31.72]
[1673901364371,20.0,23.694,23.661,31.72]
[1673901364572,126.4,23.692,23.65,20.13]
[1673901364766,56.53758,23.691,23.651,31.73]
[1673901364984,4.85758,23.69,23.651,31.73]
[1673901365201,31.68,23.689,23.65,137.8391]
[1673901365412,20.0,23.687,23.652,20.0]
[1673901365737,56.54758,23.686,23.652,20.0]
[1673901365936,40.06764586,23.686,23.66,20.15]
[1673901366151,20.0,23.686,23.661,31.72]
[1673901366469,20.0,23.684,23.65,117.5091]
[1673901366665,56.54758,23.683,23.641,31.75]
[1673901367002,4.85758,23.682,23.641,149.2591]
[1673901367195,158.09,23.681,23.641,117.5091]
[1673901367407,188.25758,23.68,23.636,20.0]
[1673901367616,162.94758,23.679,23.637,31.75]
[1673901367947,126.4,23.677,23.631,31.76]
[1673901368152,126.4,23.677,23.621,108.1857]
[1673901368153,126.4,23.675,23.628,146.957]
[1673901368341,146.4,23.673,23.629,20.0]
[1673901368551,56.55758,23.672,23.63,31.76]
[1673901368890,148.25758,23.671,23.63,31.76]
[1673901369089,126.4,23.669,23.629,20.0]
[1673901369294,20.0,23.667,23.629,51.76]
[1673901369506,73.56758,23.666,23.622,51.77]
[1673901369715,4.85758,23.665,23.617,31.78]
[1673901369943,4.85758,23.665,23.61,20.33]
[1673901369944,48.71,23.664,23.611,31.79]
[1673901370138,24.85758,23.663,23.611,31.79]
[1673901370354,126.4,23.661,23.612,20.0]
[1673901370675,126.4,23.661,23.609,115.197]
[1673901370676,36.57758,23.66,23.61,20.33]
[1673901370876,4.85758,23.659,23.609,115.197]
[1673901371094,5.14038478,23.657,23.61,31.79]
[1673901371288,4.16971855,23.655,23.601,147.2829]
[1673901371623,53.02073587,23.654,23.602,20.0]
[1673901371834,53.02073587,23.654,23.603,31.8]
[1673901371835,126.4,23.652,23.603,31.8]
[1673901372143,56.58758,23.651,23.603,31.8]
[1673901372363,24.85758,23.65,23.61,20.31]
[1673901372550,36.58758,23.649,23.611,31.79]
[1673901372760,6.34230004,23.647,23.604,20.0]
[1673901372986,126.4,23.645,23.605,31.79]
[1673901373185,20.0,23.643,23.605,31.79]
[1673901373397,56.59758,23.642,23.627,44.7039756]
[1673901373618,21.85758,23.641,23.627,44.7039756]
[1673901373811,126.4,23.639,23.594,42.32]
[1673901374018,126.4,23.637,23.595,20.81]
[1673901374234,44.7039756,23.623,23.594,42.32]
[1673901374443,76.62758,23.622,23.594,42.32]
[1673901374674,21.85758,23.621,23.594,42.32]
[1673901375005,4.85758,23.62,23.595,31.81]
[1673901375197,37.0,23.619,23.587,42.32]
[1673901375408,56.63758,23.618,23.587,42.32]
[1673901375622,21.85758,23.617,23.587,42.32]
[1673901375833,21.85758,23.617,23.581,31.83]
[1673901375834,56.63758,23.616,23.581,31.83]
[1673901376054,21.85758,23.615,23.581,31.83]
[1673901376250,20.0,23.613,23.581,31.83]
[1673901376458,20.0,23.613,23.58,0.34570806]
[1673901376459,73.63758,23.612,23.58,0.34570806]
[1673901376781,17.56681141,23.611,23.58,0.34570806]
[1673901376994,73.64758,23.61,23.58,0.34570806]
[1673901377190,4.85758,23.609,23.58,0.34570806]
[1673901377400,51.79,23.608,23.58,0.34570806]
[1673901377605,20.0,23.607,23.58,0.34570806]
[1673901377820,31.79,23.609,23.58,0.34570806]
[1673901378036,24.85758,23.608,23.58,0.34570806]
[1673901378241,20.0,23.606,23.58,0.34570806]
[1673901378471,4.85758,23.606,23.58,0.34570806]
[1673901378661,4.85758,23.606,23.581,31.83]
[1673901378996,117.933,23.633,23.59,20.33]
[1673901379182,117.933,23.633,23.591,31.81]
[1673901379394,20.0,23.632,23.601,20.0]
[1673901379604,20.0,23.632,23.602,31.8]
[1673901379828,20.0,23.632,23.603,37.0]
[1673901380044,31.74,23.642,23.604,31.8]
[1673901380255,20.0,23.641,23.606,20.0]
[1673901380568,20.0,23.641,23.607,51.79]
[1673901380886,5.9939756,23.623,23.61,20.33]
[1673901381075,20.0,23.641,23.611,68.79]
[1673901381287,20.0,23.641,23.611,48.79]
[1673901381602,16.04877471,23.639,23.612,31.79]
[1673901381807,20.0,23.641,23.608,31.79]
[1673901382044,20.0,23.641,23.61,20.13]
[1673901382234,20.0,23.641,23.611,71.79]
[1673901382459,51.74,23.645,23.611,71.79]
[1673901382647,31.74,23.649,23.62,20.33]
[1673901382862,31.73,23.652,23.621,17.0]
[1673901383074,31.73,23.654,23.623,20.0]
[1673901383284,31.72,23.658,23.63,20.15]
[1673901383493,113.8457,23.67,23.631,37.0]
[1673901383494,31.71,23.669,23.631,37.0]
[1673901383709,11.19119471,23.665,23.631,68.76]
[1673901383916,31.72,23.664,23.64,20.29]
[1673901384125,20.0,23.671,23.642,20.0]
[1673901384339,48.43419874,23.671,23.643,17.0]
[1673901384659,47.75877471,23.67,23.632,31.76]
[1673901384870,47.75877471,23.67,23.633,17.0]
[1673901384871,4.85758,23.669,23.633,17.0]
[1673901385093,4.85758,23.669,23.635,20.0]
[1673901385094,20.0,23.668,23.635,20.0]
[1673901385290,20.0,23.667,23.64,20.31]
[1673901385497,20.0,23.667,23.641,51.75]
[1673901385708,20.0,23.667,23.642,17.0]
[1673901385917,47.45894182,23.666,23.642,17.0]
[1673901386131,20.0,23.664,23.632,20.0]
[1673901386461,51.72,23.663,23.631,31.76]
[1673901386644,4.85758,23.662,23.624,31.77]
[1673901386858,126.4,23.66,23.621,31.77]
[1673901387069,126.4,23.66,23.611,20.0]
[1673901387070,20.0,23.658,23.62,20.33]
[1673901387282,73.58758,23.657,23.621,31.77]
[1673901387505,73.58758,23.657,23.62,20.33]
[1673901387703,73.58758,23.657,23.614,31.78]
[1673901387704,16.04877471,23.656,23.614,31.78]
[1673901387919,73.58758,23.655,23.613,51.78]
[1673901388118,24.85758,23.654,23.613,51.78]
[1673901388332,73.58758,23.653,23.613,51.78]
[1673901388658,4.85758,23.653,23.63,20.29]
[1673901388873,31.71,23.667,23.63,20.29]
[1673901389069,20.0,23.662,23.632,20.0]
[1673901389279,31.72,23.661,23.633,17.0]
[1673901389490,20.0,23.662,23.633,17.0]
[1673901389820,20.0,23.662,23.634,20.0]
[1673901390033,51.72,23.661,23.636,20.0]
[1673901390229,51.72,23.661,23.62,20.41]
[1673901390230,20.0,23.661,23.62,20.41]
[1673901390438,31.72,23.66,23.624,20.0]
[1673901390639,20.0,23.659,23.624,20.0]
[1673901390848,31.72,23.658,23.624,20.0]
[1673901391060,20.0,23.656,23.623,20.0]
[1673901391293,51.73,23.655,23.624,31.77]
[1673901391498,17.0,23.654,23.62,20.41]
[1673901391718,17.0,23.654,23.611,27.5782601]
[1673901391719,56.58758,23.653,23.614,31.78]
[1673901391924,21.85758,23.652,23.613,51.78]
[1673901392239,76.58758,23.651,23.613,20.0]
[1673901392450,21.85758,23.65,23.613,20.0]
[1673901392762,20.0,23.648,23.613,51.78]
[1673901392959,31.74,23.647,23.621,20.0]
[1673901393165,20.0,23.656,23.622,51.77]
[1673901393377,51.73,23.655,23.622,51.77]
[1673901393592,51.73,23.655,23.622,20.0]
[1673901393801,51.73,23.655,23.614,31.78]
[1673901393802,11.19119471,23.654,23.615,20.0]
[1673901394004,20.0,23.652,23.617,20.0]
[1673901394207,51.51809,23.651,23.618,20.0]
[1673901394442,21.85758,23.65,23.618,20.0]
[1673901394650,36.59758,23.649,23.618,20.0]
[1673901394843,4.85758,23.648,23.614,20.0]
[1673901395062,51.74,23.647,23.612,20.0]
[1673901395272,20.0,23.647,23.613,51.78]
[1673901395480,31.74,23.646,23.613,20.0]
[1673901395687,20.0,23.647,23.62,20.33]
[1673901396010,20.0,23.649,23.621,20.0]
[1673901396221,20.0,23.652,23.622,48.77]
[1673901396553,31.73,23.651,23.622,17.0]
[1673901396737,24.85758,23.65,23.622,17.0]
[1673901396941,128.465,23.656,23.623,20.0]
[1673901396942,20.0,23.656,23.623,20.0]
[1673901397152,31.72,23.658,23.624,17.0]
[1673901397376,20.0,23.659,23.625,31.77]
[1673901397592,20.0,23.663,23.626,17.0]
[1673901397593,51.72,23.663,23.626,17.0]
[1673901397811,394.3,23.664,23.627,51.77]
[1673901398118,394.3,23.664,23.64,20.33]
[1673901398338,31.71,23.67,23.641,37.0]
[1673901398742,20.0,23.667,23.632,31.76]
[1673901398959,20.0,23.665,23.629,20.0]
[1673901399161,51.72,23.664,23.63,20.2]
[1673901399486,20.0,23.664,23.64,20.33]
[1673901400012,20.0,23.669,23.641,20.0]
[1673901400342,705.1567,23.685,23.642,17.0]
[1673901400343,51.71,23.671,23.642,17.0]
[1673901400838,51.71,23.671,23.643,20.0]
[1673901401041,51.71,23.671,23.644,17.0]
[1673901401469,51.71,23.671,23.641,20.0]
[1673901401470,51.71,23.671,23.642,17.0]
[1673901401698,20.0,23.67,23.642,17.0]
[1673901401908,20.0,23.668,23.643,20.0]
[1673901402219,31.71,23.669,23.65,20.29]
[1673901402433,31.7,23.676,23.651,37.0]
[1673901402751,20.0,23.677,23.651,37.0]
[1673901402956,20.0,23.677,23.652,20.0]
[1673901403166,20.0,23.677,23.653,17.0]
[1673901403354,20.0,23.677,23.651,37.0]
[1673901403993,20.0,23.677,23.651,20.0]
[1673901404211,51.7,23.676,23.651,20.0]
[1673901404615,20.0,23.676,23.651,20.0]
[1673901404824,31.69,23.684,23.652,20.0]
[1673901405036,20.0,23.683,23.66,20.31]
[1673901405250,20.0,23.682,23.661,20.0]
[1673901405476,20.0,23.682,23.662,17.0]
[1673901405689,113.2866,23.698,23.662,17.0]
[1673901405690,31.67,23.697,23.663,20.0]
[1673901405995,31.67,23.697,23.661,51.72]
[1673901405996,20.0,23.696,23.665,20.0]
[1673901406216,31.67,23.695,23.665,20.0]
[1673901406401,31.67,23.695,23.666,17.0]
[1673901406615,42.86749981,23.695,23.666,17.0]
[1673901406823,20.0,23.694,23.666,17.0]
[1673901407038,31.68,23.693,23.666,17.0]
[1673901407250,42.87749981,23.693,23.666,17.0]
[1673901407676,31.68,23.693,23.67,20.33]
[1673901407897,20.0,23.694,23.672,20.0]
[1673901408121,20.0,23.694,23.673,17.0]
[1673901408330,20.0,23.693,23.673,17.0]
[1673901408856,20.0,23.695,23.674,20.0]
[1673901409041,20.0,23.695,23.68,20.31]
[1673901409463,31.66,23.704,23.681,17.0]
[1673901409884,20.0,23.7,23.681,17.0]
[1673901410093,31.67,23.699,23.681,17.0]
[1673901410319,31.66,23.704,23.682,20.0]
[1673901410516,31.65,23.711,23.683,17.0]
[1673901410727,31.64,23.721,23.684,20.0]
[1673901410938,20.0,23.72,23.685,17.0]
[1673901411149,36.49758,23.719,23.683,17.0]
[1673901411369,20.0,23.717,23.682,20.0]
[1673901411583,31.65,23.716,23.683,17.0]
[1673901411783,20.0,23.714,23.683,17.0]
[1673901411995,31.65,23.713,23.683,17.0]
[1673901412199,20.0,23.712,23.681,17.0]
[1673901412536,20.0,23.71,23.682,20.0]
[1673901412719,51.66,23.709,23.675,118.6096]
[1673901412930,20.0,23.708,23.675,118.6096]
[1673901413145,51.66,23.707,23.675,118.6096]
[1673901413472,11.19749981,23.706,23.675,118.6096]
[1673901413666,51.66,23.705,23.675,118.6096]
[1673901413881,51.66,23.705,23.664,20.0]
[1673901413882,41.85758,23.704,23.664,20.0]
[1673901414097,56.51758,23.703,23.664,20.0]
[1673901414309,20.0,23.701,23.663,109.0515]
[1673901414508,73.52758,23.7,23.663,109.0515]
[1673901414731,4.85758,23.699,23.663,109.0515]
[1673901414944,68.67,23.698,23.663,109.0515]
[1673901415158,24.85758,23.697,23.663,109.0515]
[1673901415346,73.52758,23.696,23.663,109.0515]
[1673901415561,24.85758,23.695,23.652,20.0]
[1673901415772,20.0,23.693,23.65,20.29]
[1673901416093,442.03507981,23.692,23.649,109.0515]
[1673901416416,20.0,23.69,23.649,109.0515]
[1673901416628,56.53758,23.689,23.64,20.33]
[1673901416841,41.85758,23.688,23.64,20.33]
[1673901417054,56.53758,23.687,23.64,20.33]
[1673901417249,136.68878,23.686,23.64,20.33]
[1673901417460,36.54758,23.685,23.641,31.75]
[1673901417665,20.0,23.683,23.64,20.33]
[1673901417898,394.3,23.681,23.64,20.33]
[1673901418112,56.54758,23.68,23.64,20.33]
[1673901418421,21.85758,23.679,23.64,20.33]
[1673901418617,56.55758,23.678,23.64,20.33]
[1673901418830,41.85758,23.677,23.636,118.6848]
[1673901419043,56.55758,23.676,23.636,118.6848]
[1673901419367,20.0,23.674,23.636,118.6848]
[1673901419573,73.55758,23.673,23.636,118.6848]
[1673901419773,20.0,23.672,23.637,20.0]
[1673901420099,20.0,23.67,23.639,20.0]
[1673901420298,51.71,23.669,23.64,17.0]
[1673901420516,51.71,23.669,23.639,20.0]
[1673901420711,51.71,23.669,23.631,20.0]
[1673901420712,20.0,23.667,23.631,20.0]
[1673901420923,68.71,23.666,23.631,20.0]
[1673901421359,11.19749981,23.665,23.631,20.0]
[1673901421568,20.0,23.663,23.631,20.0]
[1673901421887,51.72,23.662,23.633,17.0]
[1673901422091,31.72,23.662,23.64,20.31]
[1673901422309,20.0,23.667,23.641,17.0]
[1673901422510,31.71,23.666,23.641,17.0]
[1673901422707,20.0,23.665,23.641,17.0]
[1673901422917,31.72,23.664,23.641,17.0]
[1673901423140,20.0,23.663,23.63,20.33]
[1673901423353,73.57758,23.662,23.626,119.754]
[1673901423551,20.0,23.66,23.627,20.0]
[1673901423766,51.72,23.659,23.627,20.0]
[1673901424205,51.72,23.659,23.63,20.13]
[1673901424390,20.0,23.659,23.631,20.0]
[1673901424725,20.0,23.658,23.633,20.0]
[1673901425043,51.72,23.663,23.64,20.13]
[1673901425252,20.0,23.662,23.641,17.0]
[1673901425441,31.71,23.666,23.641,17.0]
[1673901425652,20.0,23.668,23.641,17.0]
[1673901426280,20.0,23.668,23.64,20.13]
[1673901426484,31.72,23.664,23.63,20.33]
[1673901426699,31.72,23.664,23.628,31.76]
[1673901426700,20.0,23.662,23.628,20.0]
[1673901426924,36.57758,23.661,23.621,31.77]
[1673901427135,24.85758,23.66,23.621,31.77]
[1673901427351,53.57758,23.659,23.62,20.2]
[1673901427538,40.0,23.658,23.62,20.2]
[1673901427751,36.58758,23.657,23.62,20.2]
[1673901427964,24.85758,23.656,23.62,20.2]
[1673901428298,36.58758,23.655,23.62,20.2]
[1673901428499,41.85758,23.654,23.614,117.8885]
[1673901428707,36.58758,23.653,23.614,117.8885]
[1673901428924,37.0,23.652,23.62,20.33]
[1673901429117,31.73,23.651,23.62,20.33]
[1673901429338,37.0,23.65,23.62,20.33]
[1673901429665,20.0,23.648,23.62,20.33]
[1673901429872,51.74,23.647,23.62,20.33]
[1673901430693,20.0,23.646,23.621,20.0]
[1673901431014,20.0,23.645,23.622,17.0]
[1673901431448,20.0,23.644,23.622,17.0]
[1673901431642,20.0,23.643,23.622,17.0]
[1673901431857,20.0,23.643,23.621,20.0]
[1673901432262,20.0,23.643,23.615,20.0]
[1673901432484,20.0,23.642,23.616,20.0]
[1673901432701,20.0,23.642,23.617,20.0]
[1673901433345,20.0,23.642,23.618,17.0]
[1673901433646,20.0,23.642,23.619,20.0]
[1673901433843,20.0,23.642,23.62,17.0]
[1673901434272,20.0,23.641,23.61,71.92]
[1673901434485,20.0,23.639,23.61,40.13]
[1673901434702,20.0,23.638,23.61,20.13]
[1673901434900,51.75,23.638,23.61,20.13]
[1673901435540,20.0,23.637,23.61,20.13]
[1673901435871,20.0,23.635,23.61,20.13]
[1673901436279,20.0,23.634,23.61,20.13]
[1673901437020,20.0,23.634,23.605,51.79]
[1673901437021,57.14698685,23.642,23.62,20.33]
[1673901437340,57.14698685,23.642,23.63,20.29]
[1673901437341,37.14698685,23.642,23.63,20.29]
[1673901437550,51.73,23.653,23.621,51.77]
[1673901437775,20.0,23.653,23.622,20.0]
[1673901438071,31.72,23.659,23.63,20.33]
[1673901438279,31.73,23.657,23.631,37.0]
[1673901438487,31.73,23.655,23.631,17.0]
[1673901438688,20.0,23.654,23.631,17.0]
[1673901438899,31.73,23.653,23.631,17.0]
[1673901439327,20.0,23.652,23.631,17.0]
[1673901439653,20.0,23.659,23.632,20.0]
[1673901439856,31.73,23.657,23.633,17.0]
[1673901440070,31.71,23.671,23.64,20.2]
[1673901440486,20.0,23.67,23.642,20.0]
[1673901440701,51.71,23.669,23.642,20.0]
[1673901440903,51.71,23.669,23.643,17.0]
[1673901441542,20.0,23.668,23.641,17.0]
[1673901441756,51.71,23.667,23.641,17.0]
[1673901441956,20.0,23.666,23.641,17.0]
[1673901442167,51.71,23.665,23.641,17.0]
[1673901442486,20.0,23.664,23.641,17.0]
[1673901442696,20.0,23.663,23.641,17.0]
[1673901443106,20.0,23.663,23.634,20.0]
[1673901443324,31.72,23.662,23.63,20.33]
[1673901443524,24.85758,23.661,23.624,20.0]
[1673901443734,51.72,23.66,23.624,20.0]
[1673901443945,68.72,23.66,23.63,20.15]
[1673901444261,73.57758,23.66,23.624,20.0]
[1673901444482,20.0,23.659,23.624,20.0]
[1673901444688,73.57758,23.658,23.624,20.0]
[1673901445107,73.57758,23.658,23.62,20.47]
[1673901445310,20.0,23.656,23.621,20.0]
[1673901445517,53.58758,23.655,23.621,20.0]
[1673901445727,24.85758,23.654,23.616,108.0045]
[1673901445941,53.58758,23.653,23.617,20.0]
[1673901446152,44.85758,23.652,23.617,20.0]
[1673901446369,20.0,23.65,23.617,20.0]
[1673901446580,68.74,23.649,23.617,20.0]
[1673901446796,73.59758,23.649,23.616,108.0045]
[1673901447005,131.25758,23.648,23.61,20.33]
[1673901447218,131.25758,23.648,23.606,117.4443]
[1673901447219,190.06378,23.647,23.606,117.4443]
[1673901447430,24.85758,23.646,23.609,20.0]
[1673901447744,73.59758,23.645,23.606,117.4443]
[1673901447934,131.25758,23.644,23.596,31.81]
[1673901448140,126.4,23.642,23.596,117.4443]
[1673901448369,20.0,23.639,23.597,20.0]
[1673901448579,189.09398,23.638,23.597,51.81]
[1673901448895,131.25758,23.637,23.59,20.33]
[1673901449110,126.4,23.635,23.59,20.33]
[1673901449316,20.0,23.633,23.59,20.33]
[1673901449513,20.0,23.633,23.585,31.82]
[1673901449514,126.4,23.631,23.585,31.82]
[1673901449742,126.4,23.629,23.584,20.0]
[1673901449945,56.61758,23.63,23.584,20.0]
[1673901449946,73.61758,23.628,23.584,20.0]
[1673901450156,4.85758,23.627,23.583,117.4443]
[1673901450366,20.0,23.625,23.584,20.0]
[1673901450599,73.62758,23.624,23.581,31.83]
[1673901450811,73.62758,23.624,23.58,20.69570806]
[1673901450812,4.85758,23.623,23.58,0.34570806]
[1673901451028,48.77,23.622,23.58,0.34570806]
[1673901451221,126.4,23.62,23.58,0.34570806]
[1673901451557,20.0,23.618,23.58,0.34570806]
[1673901451738,73.63758,23.617,23.58,0.34570806]
[1673901451946,4.85758,23.616,23.58,0.34570806]
[1673901452179,48.78,23.615,23.58,0.34570806]
[1673901452499,24.85758,23.614,23.58,0.34570806]
[1673901452709,73.63758,23.613,23.58,0.34570806]
[1673901453016,4.85758,23.612,23.58,0.34570806]
[1673901453207,31.79,23.611,23.58,0.34570806]
[1673901453423,20.0,23.609,23.573,42.16570806]
[1673901453630,56.64758,23.608,23.573,42.16570806]
[1673901453945,4.85758,23.607,23.573,42.16570806]
[1673901454158,31.79,23.606,23.573,42.16570806]
[1673901454374,20.0,23.605,23.574,62.16570806]
[1673901454695,51.8,23.604,23.574,62.16570806]
[1673901454912,75.98564855,23.604,23.574,42.16570806]
[1673901455229,20.0,23.602,23.574,42.16570806]
[1673901455427,73.65758,23.601,23.563,74.01570806]
[1673901455628,4.85758,23.6,23.563,74.01570806]
[1673901455835,4.85758,23.6,23.571,42.16570806]
[1673901456058,31.8,23.604,23.573,42.16570806]
[1673901456373,20.0,23.602,23.574,42.16570806]
[1673901456799,20.0,23.602,23.575,20.0]
[1673901456800,51.8,23.602,23.575,20.0]
[1673901457129,4.85758,23.601,23.574,42.16570806]
[1673901457330,20.0,23.599,23.567,42.16570806]
[1673901457516,31.8,23.598,23.567,42.16570806]
[1673901457726,4.85758,23.597,23.58,20.2]
[1673901457955,4.85758,23.597,23.581,31.83]
[1673901458150,108.2809,23.624,23.581,31.83]
[1673901458365,108.2809,23.624,23.582,20.0]
[1673901458366,20.0,23.619,23.582,20.0]
[1673901458581,20.0,23.619,23.59,20.2]
[1673901458903,4.85758,23.617,23.6,20.33]
[1673901459116,27.15863632,23.622,23.601,20.0]
[1673901459425,20.0,23.621,23.602,17.0]
[1673901460160,31.76,23.632,23.602,17.0]
[1673901460379,20.0,23.628,23.603,20.0]
[1673901460692,20.0,23.628,23.604,17.0]
[1673901460905,20.0,23.624,23.604,17.0]
[1673901461102,20.0,23.628,23.604,17.0]
[1673901461630,20.0,23.628,23.606,20.0]
[1673901461820,20.0,23.628,23.607,37.0]
[1673901462038,116.4662,23.634,23.607,37.0]
[1673901462355,116.4662,23.634,23.611,20.0]
[1673901462564,116.4662,23.634,23.612,17.0]
[1673901462998,31.75,23.637,23.612,17.0]
[1673901463195,20.0,23.636,23.613,20.0]
[1673901463407,20.0,23.636,23.614,17.0]
[1673901463834,20.0,23.637,23.614,17.0]
[1673901464031,31.74,23.645,23.62,20.29]
[1673901464241,31.74,23.645,23.621,20.0]
[1673901464242,20.0,23.644,23.621,20.0]
[1673901464472,24.85758,23.644,23.621,20.0]
[1673901464673,4.85758,23.643,23.621,20.0]
[1673901464884,4.85758,23.643,23.617,20.0]
[1673901465105,20.0,23.645,23.618,17.0]
[1673901465296,20.0,23.645,23.619,40.0]
[1673901465716,20.0,23.645,23.62,17.0]
[1673901465928,20.0,23.645,23.621,40.0]
[1673901466139,20.0,23.644,23.622,17.0]
[1673901466356,20.0,23.643,23.622,17.0]
[1673901466785,20.0,23.642,23.622,17.0]
[1673901467185,20.0,23.644,23.622,17.0]
[1673901467621,20.0,23.644,23.623,20.0]
[1673901467831,20.0,23.646,23.624,17.0]
[1673901468252,20.0,23.649,23.621,20.0]
[1673901468451,53.59758,23.648,23.621,20.0]
[1673901468664,53.59758,23.648,23.616,20.0]
[1673901468665,24.85758,23.647,23.617,20.0]
[1673901468881,20.0,23.645,23.617,20.0]
[1673901469106,21.85758,23.644,23.617,20.0]
[1673901469311,41.85758,23.644,23.612,31.79]
[1673901469529,36.59758,23.643,23.6,20.31]
[1673901469711,41.85758,23.642,23.6,20.31]
[1673901469927,36.60758,23.641,23.6,20.31]
[1673901470137,20.0,23.639,23.601,20.0]
[1673901470351,73.60758,23.638,23.601,20.0]
[1673901470563,4.85758,23.637,23.601,51.8]
[1673901470900,20.0,23.635,23.601,20.0]
[1673901471203,394.3,23.641,23.611,20.0]
[1673901471416,394.3,23.641,23.62,20.33]
[1673901471625,394.3,23.641,23.612,37.0]
[1673901471821,20.0,23.64,23.612,17.0]
[1673901472253,20.0,23.64,23.611,17.0]
[1673901472470,20.0,23.64,23.613,21.46196354]
[1673901472676,36.60758,23.639,23.613,21.46196354]
[1673901472880,20.0,23.637,23.613,21.46196354]
[1673901473718,56.61758,23.636,23.606,20.0]
[1673901473929,20.0,23.635,23.611,21.46196354]
[1673901474159,51.76,23.634,23.611,21.46196354]
[1673901474348,20.0,23.634,23.611,21.46196354]
[1673901474885,20.0,23.634,23.612,17.0]
[1673901475092,20.0,23.638,23.613,20.0]
[1673901475300,20.0,23.639,23.614,17.0]
[1673901475511,20.0,23.639,23.614,38.46196354]
[1673901475706,20.0,23.639,23.614,21.46196354]
[1673901475934,4.85758,23.638,23.608,20.0]
[1673901476140,31.75,23.637,23.61,20.0]
[1673901476377,37.0,23.636,23.609,21.46196354]
[1673901476573,36.61758,23.635,23.61,20.0]
[1673901476783,37.0,23.634,23.61,20.0]
[1673901477113,20.0,23.633,23.61,20.0]
[1673901477299,37.0,23.632,23.61,20.0]
[1673901477514,41.85758,23.632,23.61,20.0]
[1673901477954,20.0,23.631,23.61,20.0]